[Event "46th GER-ch Rapid 2020"]
[Site "Plochingen"]
[Date "2020.09.20"]
[Round "7.9"]
[White "Kopylov, Michael"]
[Black "Voigt, Martin"]
[Result "1-0"]
[ECO "E04"]
[WhiteElo "2408"]
[BlackElo "2289"]
[Annotator "ChessBase"]
[PlyCount "49"]
[EventDate "2020.09.19"]
[EventType "swiss"]
[EventCountry "GER"]
[SourceTitle "playchess.com"]
[Source "ChessBase"]
[SourceQuality "1"]
[TimeControl "900+10"]

1. d4 {[%emt 0:00:00]} d5 {[%emt 0:00:00]} 2. c4 {[%emt 0:00:00]} e6 {[%emt 0:00:00]} 3. Nf3 {[%emt 0:00:00]} Nf6 {[%emt 0:00:00]} 4. g3 {[%emt 0:00:01]} dxc4 {[%emt 0:00:09]} 5. Bg2 {[%emt 0:00:03]} a6 {[%emt 0:00:12]} 6. Ne5 {[%emt 0:00:13]} c5 {[%emt 0:01:13]} 7. Na3 {[%emt 0:00:24]} cxd4 {[%emt 0:01:09]} 8. Naxc4 {[%emt 0:00:02]} Nbd7 {[%emt 0:01:00]} 9. Qxd4 {[%emt 0:01:08]} Nxe5 {[%emt 0:00:18]} 10. Qxd8+ {[%emt 0:00:24]} Kxd8 {[%emt 0:00:02]} 11. Nxe5 {[%emt 0:00:01]} Bb4+ {[%emt 0:00:06]} 12. Bd2 {[%emt 0:00:24]} Bxd2+ {[%emt 0:00:11]} 13. Kxd2 {[%emt 0:00:01]} Ke7 {[%emt 0:00:08]} 14. Rhc1 {[%emt 0:00:24]} Rd8+ {[%emt 0:02:19]} 15. Ke1 {[%emt 0:00:07]} Nd7 {[%emt 0:00:08]} 16. Rc7 {[%emt 0:02:07]} f6 {[%emt 0:03:49]} 17. Nc4 {[%emt 0:00:27]} Rb8 {[%emt 0:00:16]} 18. Rd1 {[%emt 0:02:05]} Rg8 {[%emt 0:03:48]} 19. Nb6 {[%emt 0:01:39]} Kd8 {[%emt 0:00:16]} 20. Rxc8+ {[%emt 0:01:23]} Rxc8 {[%emt 0:00:02]} 21. Rxd7+ {[%emt 0:00:02]} Ke8 {[%emt 0:00:02]} 22. Rxb7 {[%emt 0:00:04]} Rc2 {[%emt 0:00:18]} 23. Be4 {[%emt 0:00:26]} Rxb2 {[%emt 0:00:48]} 24. Bc6+ {[%emt 0:00:09]} Kf8 {[%emt 0:00:11]} 25. Nd7+ {[%emt 0:00:02]} 1-0

[Event "46th GER-ch Rapid 2020"]
[Site "Plochingen"]
[Date "2020.09.20"]
[Round "8.1"]
[White "Kvetny, Mark"]
[Black "Neukirchner, Pascal"]
[Result "1/2-1/2"]
[ECO "B36"]
[WhiteElo "2427"]
[BlackElo "2259"]
[Annotator "ChessBase"]
[PlyCount "122"]
[EventDate "2020.09.19"]
[EventType "swiss"]
[EventCountry "GER"]
[SourceTitle "playchess.com"]
[Source "ChessBase"]
[SourceQuality "1"]
[TimeControl "900+10"]

1. c4 {[%emt 0:00:00]} c5 {[%emt 0:00:00]} 2. Nf3 {[%emt 0:00:00]} Nf6 {[%emt 0:00:00]} 3. Nc3 {[%emt 0:00:01]} Nc6 {[%emt 0:00:02]} 4. d4 {[%emt 0:00:02]} cxd4 {[%emt 0:00:02]} 5. Nxd4 {[%emt 0:00:02]} g6 {[%emt 0:00:02]} 6. e4 {[%emt 0:00:02]} Nxd4 {[%emt 0:00:13]} 7. Qxd4 {[%emt 0:00:03]} d6 {[%emt 0:00:01]} 8. Bg5 {[%emt 0:01:17]} Bg7 {[%emt 0:00:05]} 9. Qd2 {[%emt 0:00:08]} O-O {[%emt 0:00:21]} 10. Bd3 {[%emt 0:00:11]} Be6 {[%emt 0:01:04]} 11. O-O {[%emt 0:00:27]} Rc8 {[%emt 0:02:15]} 12. b3 {[%emt 0:00:08]} Nd7 {[%emt 0:00:01]} 13. Rac1 {[%emt 0:00:13]} Nc5 {[%emt 0:00:43]} 14. Bb1 {[%emt 0:00:40]} a5 {[%emt 0:00:18]} 15. Rfe1 {[%emt 0:01:45]} Re8 {[%emt 0:00:41]} 16. Nd5 {[%emt 0:01:38]} Bxd5 {[%emt 0:00:13]} 17. exd5 {[%emt 0:00:03]} b6 {[%emt 0:01:59]} 18. Re3 {[%emt 0:02:09]} Qd7 {[%emt 0:00:47]} 19. h4 {[%emt 0:02:02]} e5 {[%emt 0:01:10]} 20. dxe6 {[%emt 0:00:27]} Nxe6 {[%emt 0:00:04]} 21. Rd3 {[%emt 0:00:53]} Nxg5 {[%emt 0:00:28]} 22. hxg5 {[%emt 0:01:29]} Qg4 {[%emt 0:00:53]} 23. Rg3 {[%emt 0:02:33]} Qe2 {[%emt 0:00:38]} 24. Qxe2 {[%emt 0:00:20]} Rxe2 {[%emt 0:00:02]} 25. Kf1 {[%emt 0:00:06]} Rce8 {[%emt 0:00:24]} 26. Rd1 {[%emt 0:01:12]} Bd4 {[%emt 0:00:47]} 27. Rf3 {[%emt 0:00:00]} Bc5 {[%emt 0:00:08]} 28. g3 {[%emt 0:00:42]} Rb2 {[%emt 0:00:26]} 29. Bd3 {[%emt 0:00:01]} Rxa2 {[%emt 0:00:06]} 30. Re1 {[%emt 0:00:01]} Rxe1+ {[%emt 0:00:14]} 31. Kxe1 {[%emt 0:00:00]} Ra1+ {[%emt 0:01:48]} 32. Ke2 {[%emt 0:00:09]} Ra2+ {[%emt 0:00:47]} 33. Kf1 {[%emt 0:00:04]} a4 {[%emt 0:00:20]} 34. bxa4 {[%emt 0:00:10]} Rxa4 {[%emt 0:00:07]} 35. Rf4 {[%emt 0:00:24]} d5 {[%emt 0:00:38]} 36. Kg2 {[%emt 0:00:45]} Ra3 {[%emt 0:00:54]} 37. Be2 {[%emt 0:00:21]} dxc4 {[%emt 0:00:21]} 38. Bxc4 {[%emt 0:00:06]} Ra7 {[%emt 0:00:01]} 39. Rf6 {[%emt 0:00:23]} Kg7 {[%emt 0:00:23]} 40. Rf4 {[%emt 0:00:02]} Re7 {[%emt 0:00:06]} 41. Kf3 {[%emt 0:00:08]} Ba3 {[%emt 0:00:12]} 42. Re4 {[%emt 0:00:15]} Rxe4 {[%emt 0:00:18]} 43. Kxe4 {[%emt 0:00:02]} f6 {[%emt 0:00:13]} 44. gxf6+ Kxf6 {[%emt 0:00:01]} 45. g4 {[%emt 0:00:30]} Kg5 {[%emt 0:00:41]} 46. Kf3 {[%emt 0:00:01]} Bc1 {[%emt 0:00:06]} 47. Bb5 {[%emt 0:00:05]} h6 {[%emt 0:00:12]} 48. Be8 {[%emt 0:00:11]} Ba3 {[%emt 0:00:20]} 49. Bd7 {[%emt 0:00:06]} Bd6 {[%emt 0:00:01]} 50. Be8 {[%emt 0:00:02]} h5 {[%emt 0:00:02]} 51. gxh5 {[%emt 0:00:02]} gxh5 {[%emt 0:00:01]} 52. Kg2 {[%emt 0:00:02]} h4 {[%emt 0:00:14]} 53. f4+ {[%emt 0:00:08]} Bxf4 {[%emt 0:00:09]} 54. Bb5 {[%emt 0:00:01]} Bg3 {[%emt 0:00:08]} 55. Bc6 {[%emt 0:00:01]} Kg4 {[%emt 0:00:03]} 56. Bd7+ {[%emt 0:00:01]} Kf4 {[%emt 0:00:00]} 57. Bc6 {[%emt 0:00:02]} Ke5 {[%emt 0:00:02]} 58. Bb5 {[%emt 0:00:01]} Kd4 {[%emt 0:00:01]} 59. Be8 {[%emt 0:00:02]} Kc5 {[%emt 0:00:01]} 60. Bd7 {[%emt 0:00:02]} b5 {[%emt 0:00:01]} 61. Bxb5 {[%emt 0:00:01]} Kxb5 {[%emt 0:00:01]} 1/2-1/2

[Event "46th GER-ch Rapid 2020"]
[Site "Plochingen"]
[Date "2020.09.20"]
[Round "8.2"]
[White "Stern, Rene"]
[Black "Dobrikov, Marco"]
[Result "0-1"]
[ECO "A34"]
[WhiteElo "2517"]
[BlackElo "2332"]
[Annotator "RC"]
[PlyCount "48"]
[EventDate "2020.09.19"]
[EventType "swiss"]
[EventCountry "GER"]
[SourceTitle "playchess.com"]
[Source "ChessBase"]
[SourceQuality "1"]
[TimeControl "900+10"]

1. Nf3 {[%emt 0:00:00]} c5 {[%emt 0:00:00]} 2. c4 {[%emt 0:00:00]} Nc6 {[%emt 0:00:00]} 3. Nc3 {[%emt 0:00:00]} e5 {[%emt 0:00:00]} 4. e3 {[%emt 0:00:01]} Nf6 {[%emt 0:00:00]} 5. d4 {[%emt 0:00:04]} cxd4 {[%emt 0:00:00]} 6. exd4 {[%emt 0:00:02]} e4 {[%emt 0:00:00]} 7. Ne5 {[%emt 0:00:03]} d6 {[%emt 0:00:04]} 8. Nxc6 {[%emt 0:00:09]} bxc6 {[%emt 0:00:01]} 9. Bg5 {[%emt 0:02:54]} Bf5 {[%emt 0:01:18]} 10. Qa4 {[%emt 0:00:25]} Qb6 {[%emt 0:00:07]} 11. Bxf6 {[%emt 0:00:09]} gxf6 {[%emt 0:00:02]} 12. Nd5 {[%emt 0:00:26]} Qb7 {[%emt 0:00:01]} 13. g4 {[%emt 0:01:44]} Bd7 {[%emt 0:01:43]} 14. Nxf6+ {[%emt 0:00:13]} Ke7 {[%emt 0:00:01]} 15. Nxd7 {[%emt 0:00:31]} Qxb2 {[%emt 0:00:20]} 16. Rd1 {[%emt 0:01:41]} Qc3+ {[%emt 0:00:06]} 17. Ke2 {[%emt 0:00:11]} Qf3+ {[%emt 0:00:16]} 18. Kd2 {[%emt 0:00:01]} Qxf2+ {[%emt 0:00:21]} 19. Kc1 {[%emt 0:03:45]} Bh6+ {[%emt 0:00:08]} 20. g5 {[%emt 0:00:33]} Bxg5+ {[%emt 0:00:02]} 21. Kb1 Rab8+ {[%emt 0:00:24]} 22. Nxb8 {[%emt 0:00:02]} Rxb8+ {[%emt 0:00:00]} 23. Qb3 {[%emt 0:00:00]} Rxb3+ {[%emt 0:00:03]} 24. axb3 {[%emt 0:00:02]} Qf3 {[%emt 0:00:05]} 0-1

[Event "46th GER-ch Rapid 2020"]
[Site "Plochingen"]
[Date "2020.09.20"]
[Round "8.3"]
[White "Meissner, Felix"]
[Black "Siebrecht, Sebastian"]
[Result "1/2-1/2"]
[ECO "B06"]
[WhiteElo "2362"]
[BlackElo "2418"]
[Annotator "ChessBase"]
[PlyCount "142"]
[EventDate "2020.09.19"]
[EventType "swiss"]
[EventCountry "GER"]
[SourceTitle "playchess.com"]
[Source "ChessBase"]
[SourceQuality "1"]
[TimeControl "900+10"]

1. e4 {[%emt 0:00:00]} g6 {[%emt 0:00:00]} 2. d4 {[%emt 0:00:00]} Bg7 {[%emt 0:00:00]} 3. Nf3 {[%emt 0:00:29]} d6 {[%emt 0:00:00]} 4. Bc4 {[%emt 0:00:03]} a6 {[%emt 0:00:00]} 5. Bb3 {[%emt 0:00:25]} e6 {[%emt 0:00:00]} 6. O-O {[%emt 0:00:36]} b6 {[%emt 0:00:07]} 7. Bg5 {[%emt 0:00:49]} Ne7 {[%emt 0:00:01]} 8. Re1 {[%emt 0:01:02]} h6 {[%emt 0:00:01]} 9. Bh4 {[%emt 0:01:23]} Nd7 {[%emt 0:00:02]} 10. c3 {[%emt 0:00:08]} Bb7 {[%emt 0:00:02]} 11. a4 {[%emt 0:00:14]} O-O {[%emt 0:00:03]} 12. Nbd2 {[%emt 0:00:10]} g5 {[%emt 0:00:12]} 13. Bg3 {[%emt 0:00:18]} Ng6 {[%emt 0:00:01]} 14. Nc4 {[%emt 0:01:38]} Nf6 {[%emt 0:01:08]} 15. e5 {[%emt 0:00:22]} Ne4 {[%emt 0:00:06]} 16. exd6 {[%emt 0:00:34]} cxd6 {[%emt 0:00:02]} 17. Nfd2 {[%emt 0:01:49]} Nxg3 {[%emt 0:00:16]} 18. hxg3 {[%emt 0:00:01]} d5 {[%emt 0:03:10]} 19. Ne3 {[%emt 0:02:00]} f5 {[%emt 0:00:02]} 20. Bc2 {[%emt 0:00:45]} g4 {[%emt 0:00:30]} 21. Nxg4 {[%emt 0:01:09]} fxg4 {[%emt 0:00:01]} 22. Qxg4 {[%emt 0:00:59]} Ne7 {[%emt 0:00:13]} 23. Qxe6+ {[%emt 0:00:45]} Rf7 {[%emt 0:00:01]} 24. Nf3 {[%emt 0:00:34]} Bc8 {[%emt 0:00:03]} 25. Qe3 {[%emt 0:00:13]} Bf5 {[%emt 0:00:02]} 26. Bxf5 {[%emt 0:00:07]} Nxf5 {[%emt 0:00:02]} 27. Qe6 {[%emt 0:00:05]} Qd6 {[%emt 0:00:18]} 28. Qxd6 {[%emt 0:00:04]} Nxd6 {[%emt 0:00:02]} 29. Re6 {[%emt 0:00:05]} Rf6 {[%emt 0:02:12]} 30. Rae1 {[%emt 0:00:02]} Ne4 {[%emt 0:01:03]} 31. Re7 {[%emt 0:00:19]} Raf8 {[%emt 0:01:54]} 32. Rd7 {[%emt 0:00:12]} Rd6 {[%emt 0:00:52]} 33. Rxd6 {[%emt 0:00:54]} Nxd6 {[%emt 0:00:02]} 34. Re6 {[%emt 0:00:01]} Rf6 {[%emt 0:00:02]} 35. Re7 {[%emt 0:00:25]} Kf8 {[%emt 0:01:42]} 36. Rd7 {[%emt 0:00:05]} Re6 {[%emt 0:00:04]} 37. Kf1 {[%emt 0:00:17]} Bf6 {[%emt 0:00:42]} 38. Ne1 {[%emt 0:00:33]} Ke8 {[%emt 0:01:21]} 39. Ra7 {[%emt 0:00:01]} Nc4 {[%emt 0:00:25]} 40. Nd3 {[%emt 0:00:11]} a5 {[%emt 0:00:22]} 41. g4 {[%emt 0:00:33]} Nd2+ {[%emt 0:00:31]} 42. Kg1 {[%emt 0:00:01]} Nc4 {[%emt 0:02:01]} 43. Kf1 {[%emt 0:00:06]} Be7 {[%emt 0:00:28]} 44. Ra8+ {[%emt 0:00:07]} Bd8 {[%emt 0:00:14]} 45. Ra7 {[%emt 0:00:31]} Re7 {[%emt 0:00:23]} 46. Ra8 {[%emt 0:00:35]} Re4 {[%emt 0:01:02]} 47. g3 {[%emt 0:00:15]} Rxg4 {[%emt 0:00:09]} 48. Nf4 {[%emt 0:00:06]} Kd7 {[%emt 0:00:19]} 49. b3 {[%emt 0:00:29]} Nd2+ {[%emt 0:00:14]} 50. Ke2 {[%emt 0:00:18]} Nxb3 {[%emt 0:00:29]} 51. Nxd5 {[%emt 0:00:01]} Rg6 {[%emt 0:00:21]} 52. Kd1 {[%emt 0:00:20]} Rd6 {[%emt 0:00:02]} 53. Ne3 {[%emt 0:00:12]} Nxd4 {[%emt 0:00:09]} 54. cxd4 {[%emt 0:00:19]} Rxd4+ {[%emt 0:00:01]} 55. Ke2 {[%emt 0:00:07]} Rxa4 {[%emt 0:00:01]} 56. Ra7+ {[%emt 0:00:04]} Kc6 {[%emt 0:00:15]} 57. Rh7 {[%emt 0:00:03]} Ra2+ {[%emt 0:00:01]} 58. Kd3 {[%emt 0:00:29]} Rxf2 {[%emt 0:00:06]} 59. Rxh6+ {[%emt 0:00:01]} Kb5 {[%emt 0:00:14]} 60. Rh5+ {[%emt 0:00:01]} Ka6 {[%emt 0:00:16]} 61. g4 {[%emt 0:00:07]} a4 {[%emt 0:00:18]} 62. Nd5 {[%emt 0:00:16]} a3 {[%emt 0:00:15]} 63. Rh8 {[%emt 0:00:06]} Bg5 {[%emt 0:00:14]} 64. Ra8+ {[%emt 0:00:02]} Kb7 {[%emt 0:00:01]} 65. Ra4 {[%emt 0:00:19]} b5 {[%emt 0:00:07]} 66. Ra5 {[%emt 0:00:03]} Kc6 {[%emt 0:00:11]} 67. Nc3 {[%emt 0:00:17]} b4 {[%emt 0:00:17]} 68. Rxg5 {[%emt 0:00:10]} Rf3+ {[%emt 0:00:02]} 69. Kc4 {[%emt 0:00:01]} bxc3 {[%emt 0:00:02]} 70. Kb3 {[%emt 0:00:08]} Kd6 {[%emt 0:00:39]} 71. Kxa3 {[%emt 0:00:07]} Ke6 {[%emt 0:00:01]} 1/2-1/2

[Event "46th GER-ch Rapid 2020"]
[Site "Plochingen"]
[Date "2020.09.20"]
[Round "8.4"]
[White "Frischmann, Rick"]
[Black "Hirneise, Jens"]
[Result "0-1"]
[ECO "C09"]
[WhiteElo "2347"]
[BlackElo "2289"]
[Annotator "ChessBase"]
[PlyCount "70"]
[EventDate "2020.09.19"]
[EventType "swiss"]
[EventCountry "GER"]
[SourceTitle "playchess.com"]
[Source "ChessBase"]
[SourceQuality "1"]
[TimeControl "900+10"]

1. e4 {[%emt 0:00:00]} e6 {[%emt 0:00:00]} 2. d4 {[%emt 0:00:00]} d5 {[%emt 0:00:00]} 3. Nd2 {[%emt 0:00:00]} c5 {[%emt 0:00:00]} 4. exd5 {[%emt 0:00:00]} exd5 {[%emt 0:00:00]} 5. Ngf3 {[%emt 0:00:00]} Nc6 {[%emt 0:00:00]} 6. Bb5 {[%emt 0:00:01]} Qe7+ {[%emt 0:00:13]} 7. Be2 {[%emt 0:00:45]} Qc7 {[%emt 0:00:05]} 8. O-O {[%emt 0:00:11]} Nf6 {[%emt 0:00:11]} 9. Re1 {[%emt 0:01:30]} cxd4 {[%emt 0:00:14]} 10. Nb3 {[%emt 0:00:37]} Bb4 {[%emt 0:00:17]} 11. Bd2 {[%emt 0:00:06]} Be7 {[%emt 0:00:17]} 12. Nbxd4 {[%emt 0:00:36]} O-O {[%emt 0:00:23]} 13. Bg5 {[%emt 0:00:55]} Re8 {[%emt 0:01:58]} 14. c3 {[%emt 0:01:02]} a6 {[%emt 0:01:38]} 15. Bd3 {[%emt 0:02:58]} Bg4 {[%emt 0:00:25]} 16. Qc2 {[%emt 0:00:40]} h6 {[%emt 0:01:35]} 17. Bh4 {[%emt 0:00:01]} Bxf3 {[%emt 0:01:08]} 18. Nxf3 {[%emt 0:00:04]} Nh5 {[%emt 0:00:14]} 19. Bxe7 {[%emt 0:01:21]} Rxe7 {[%emt 0:00:07]} 20. Rxe7 {[%emt 0:00:10]} Nxe7 {[%emt 0:00:35]} 21. Qd2 {[%emt 0:00:13]} Nf6 {[%emt 0:00:50]} 22. Re1 {[%emt 0:00:40]} Nc6 {[%emt 0:00:31]} 23. Bc2 {[%emt 0:00:15]} Rd8 {[%emt 0:00:54]} 24. Nd4 {[%emt 0:02:11]} Qb6 {[%emt 0:02:32]} 25. Nxc6 {[%emt 0:01:15]} bxc6 {[%emt 0:00:12]} 26. Re7 {[%emt 0:00:02]} Kf8 {[%emt 0:00:43]} 27. Qe2 {[%emt 0:03:33]} Ne4 {[%emt 0:01:34]} 28. Bxe4 {[%emt 0:00:02]} Kxe7 {[%emt 0:00:13]} 29. Bxd5+ {[%emt 0:00:01]} Kf8 {[%emt 0:00:13]} 30. Bb3 {[%emt 0:00:01]} Re8 {[%emt 0:00:21]} 31. Qf1 {[%emt 0:00:01]} Qb5 {[%emt 0:00:29]} 32. Qd1 {[%emt 0:00:51]} Qe2 {[%emt 0:00:12]} 33. Qd6+ {[%emt 0:00:11]} Qe7 {[%emt 0:00:10]} 34. Qxe7+ {[%emt 0:00:14]} Kxe7 {[%emt 0:00:08]} 35. g3 {[%emt 0:00:01]} Rd8 {[%emt 0:00:05]} 0-1

[Event "46th GER-ch Rapid 2020"]
[Site "Plochingen"]
[Date "2020.09.20"]
[Round "8.5"]
[White "Rosner, Jonas"]
[Black "Kopylov, Michael"]
[Result "1-0"]
[ECO "A43"]
[WhiteElo "2433"]
[BlackElo "2408"]
[Annotator "ChessBase"]
[PlyCount "99"]
[EventDate "2020.09.19"]
[EventType "swiss"]
[EventCountry "GER"]
[SourceTitle "playchess.com"]
[Source "ChessBase"]
[SourceQuality "1"]
[TimeControl "900+10"]

1. d4 {[%emt 0:00:00]} Nf6 {[%emt 0:00:00]} 2. Nf3 {[%emt 0:00:00]} c5 {[%emt 0:00:00]} 3. d5 {[%emt 0:00:00]} b5 {[%emt 0:00:02]} 4. c3 {[%emt 0:00:00]} Bb7 {[%emt 0:00:23]} 5. e4 {[%emt 0:00:00]} Nxe4 {[%emt 0:00:26]} 6. Bxb5 {[%emt 0:00:01]} g6 {[%emt 0:01:41]} 7. O-O {[%emt 0:00:07]} Bg7 {[%emt 0:00:11]} 8. Re1 {[%emt 0:00:24]} Nf6 {[%emt 0:00:14]} 9. c4 {[%emt 0:00:26]} O-O {[%emt 0:00:16]} 10. Nc3 {[%emt 0:00:04]} e6 {[%emt 0:01:55]} 11. Bf4 {[%emt 0:01:21]} a6 {[%emt 0:01:18]} 12. Ba4 {[%emt 0:00:13]} Qb6 {[%emt 0:00:22]} 13. Qd2 {[%emt 0:00:46]} exd5 {[%emt 0:00:58]} 14. cxd5 {[%emt 0:00:13]} d6 {[%emt 0:00:17]} 15. Re7 {[%emt 0:02:28]} Bc8 {[%emt 0:03:01]} 16. Rae1 {[%emt 0:01:00]} Bd7 {[%emt 0:00:11]} 17. Bb3 {[%emt 0:01:03]} Ra7 {[%emt 0:01:04]} 18. Bh6 {[%emt 0:01:00]} a5 {[%emt 0:01:07]} 19. Bxg7 {[%emt 0:00:52]} Kxg7 {[%emt 0:00:01]} 20. Ng5 {[%emt 0:00:11]} a4 {[%emt 0:01:25]} 21. Bxa4 {[%emt 0:01:09]} Kg8 {[%emt 0:02:26]} 22. Bb3 {[%emt 0:03:37]} Bf5 {[%emt 0:00:31]} 23. h3 {[%emt 0:00:44]} Rxe7 {[%emt 0:00:19]} 24. Rxe7 {[%emt 0:00:01]} Qb4 {[%emt 0:00:09]} 25. Nf3 {[%emt 0:00:43]} Nbd7 {[%emt 0:00:17]} 26. Ba4 {[%emt 0:00:36]} Nb6 {[%emt 0:00:13]} 27. a3 {[%emt 0:00:57]} Qc4 {[%emt 0:00:30]} 28. Bc6 {[%emt 0:00:30]} Ne4 {[%emt 0:00:10]} 29. Qh6 {[%emt 0:00:46]} Nf6 {[%emt 0:00:10]} 30. Qd2 {[%emt 0:00:34]} Ne4 {[%emt 0:00:01]} 31. Nxe4 {[%emt 0:00:12]} Bxe4 {[%emt 0:00:01]} 32. b3 {[%emt 0:00:05]} Qd3 {[%emt 0:00:16]} 33. Qxd3 {[%emt 0:00:11]} Bxd3 {[%emt 0:00:00]} 34. Rb7 {[%emt 0:00:12]} Nc8 {[%emt 0:00:18]} 35. a4 {[%emt 0:00:03]} Rd8 {[%emt 0:00:22]} 36. Ng5 {[%emt 0:00:10]} Rf8 {[%emt 0:00:04]} 37. a5 {[%emt 0:00:04]} h6 {[%emt 0:00:08]} 38. Nf3 {[%emt 0:00:06]} Rd8 {[%emt 0:00:06]} 39. Nd2 {[%emt 0:00:02]} Ba6 {[%emt 0:00:13]} 40. Rb8 {[%emt 0:00:07]} Kf8 {[%emt 0:00:04]} 41. Nc4 {[%emt 0:00:07]} Ke7 {[%emt 0:00:03]} 42. f4 {[%emt 0:00:18]} g5 {[%emt 0:00:25]} 43. g3 {[%emt 0:00:05]} gxf4 {[%emt 0:00:04]} 44. gxf4 {[%emt 0:00:00]} h5 {[%emt 0:00:13]} 45. Kf2 {[%emt 0:00:01]} h4 {[%emt 0:00:03]} 46. Bb7 {[%emt 0:00:20]} Bxc4 {[%emt 0:00:26]} 47. bxc4 {[%emt 0:00:07]} Na7 {[%emt 0:00:07]} 48. Rxd8 {[%emt 0:00:20]} Kxd8 {[%emt 0:00:01]} 49. f5 {[%emt 0:00:14]} Ke7 {[%emt 0:00:23]} 50. Kf3 {[%emt 0:00:02]} 1-0

[Event "46th GER-ch Rapid 2020"]
[Site "Plochingen"]
[Date "2020.09.20"]
[Round "8.7"]
[White "Richter, Nils"]
[Black "Braeuning, Rudolf Wilhelm"]
[Result "0-1"]
[ECO "A21"]
[WhiteElo "2307"]
[BlackElo "2268"]
[Annotator "ChessBase"]
[PlyCount "74"]
[EventDate "2020.09.19"]
[EventType "swiss"]
[EventCountry "GER"]
[SourceTitle "playchess.com"]
[Source "ChessBase"]
[SourceQuality "1"]
[TimeControl "900+10"]

1. c4 {[%emt 0:00:00]} e5 {[%emt 0:00:07]} 2. Nc3 {[%emt 0:00:00]} Bb4 {[%emt 0:00:01]} 3. Nd5 {[%emt 0:00:00]} Be7 {[%emt 0:00:02]} 4. d4 {[%emt 0:00:25]} exd4 {[%emt 0:00:37]} 5. Nf3 {[%emt 0:00:01]} Nf6 {[%emt 0:01:18]} 6. Nxe7 {[%emt 0:00:37]} Qxe7 {[%emt 0:00:02]} 7. Nxd4 {[%emt 0:00:02]} Qb4+ {[%emt 0:03:41]} 8. Bd2 {[%emt 0:01:31]} Qxc4 {[%emt 0:00:21]} 9. e3 {[%emt 0:00:07]} Qd5 {[%emt 0:00:01]} 10. Be2 {[%emt 0:03:01]} Qxg2 {[%emt 0:01:04]} 11. Bf3 {[%emt 0:00:01]} Qg6 {[%emt 0:00:04]} 12. Qb3 {[%emt 0:01:12]} Na6 {[%emt 0:00:17]} 13. Ke2 {[%emt 0:01:27]} Nc5 {[%emt 0:06:02]} 14. Qa3 {[%emt 0:02:18]} Ne6 {[%emt 0:01:26]} 15. Rhg1 {[%emt 0:00:48]} Nxd4+ {[%emt 0:00:15]} 16. exd4 {[%emt 0:00:02]} Qf5 {[%emt 0:00:07]} 17. Rae1 {[%emt 0:00:26]} Kd8 {[%emt 0:00:28]} 18. Kd1 {[%emt 0:00:28]} d6 {[%emt 0:00:52]} 19. Rxg7 {[%emt 0:00:46]} Re8 {[%emt 0:00:25]} 20. Rxe8+ {[%emt 0:00:39]} Nxe8 {[%emt 0:00:15]} 21. Rg8 {[%emt 0:00:10]} a5 {[%emt 0:00:46]} 22. Qe3 {[%emt 0:02:14]} Bd7 {[%emt 0:00:13]} 23. Kc1 {[%emt 0:00:44]} c6 {[%emt 0:00:08]} 24. Bg4 {[%emt 0:00:41]} Qd5 {[%emt 0:00:15]} 25. Bxd7 {[%emt 0:00:46]} Kxd7 {[%emt 0:00:02]} 26. Qh3+ {[%emt 0:00:01]} Kc7 {[%emt 0:00:07]} 27. Qxh7 {[%emt 0:00:16]} Nf6 {[%emt 0:00:05]} 28. Rxa8 {[%emt 0:00:38]} Nxh7 {[%emt 0:00:02]} 29. Bxa5+ {[%emt 0:00:03]} Kd7 {[%emt 0:00:04]} 30. Ra7 {[%emt 0:00:19]} Qc4+ {[%emt 0:00:09]} 31. Bc3 {[%emt 0:00:07]} Kc7 {[%emt 0:00:07]} 32. Ra8 {[%emt 0:00:04]} Ng5 {[%emt 0:00:05]} 33. Re8 {[%emt 0:00:16]} Kd7 {[%emt 0:00:18]} 34. Re3 {[%emt 0:00:04]} Ne6 {[%emt 0:00:06]} 35. h4 {[%emt 0:00:22]} Nxd4 {[%emt 0:00:07]} 36. h5 {[%emt 0:00:01]} Nf5 {[%emt 0:00:05]} 37. Rf3 {[%emt 0:00:08]} Qg4 {[%emt 0:00:03]} 0-1